bitfinex-derivatives/quotes_BTCF0:USTF0_20250308
["timestamp","ask_amount","ask_price","bid_price","bid_amount"]
[1741393155685,0.10352028,86690.0,86689.0,0.6935871]
[1741393156288,0.10552028,86690.0,86689.0,0.6935871]
[1741393156881,0.10552028,86690.0,86689.0,0.70688736]
[1741393157284,0.002,86690.0,86689.0,0.36942159]
[1741393157484,0.3628,86690.0,86678.0,0.00017308]
[1741393157685,0.1077,86689.0,86680.0,0.15521368]
[1741393157881,0.0576957,86686.0,86680.0,0.15521368]
[1741393158088,0.1077,86685.0,86682.0,0.4761961]
[1741393158486,0.1077,86685.0,86682.0,0.3608]
[1741393158690,0.1077,86685.0,86677.0,0.1129]
[1741393159191,0.1077,86685.0,86681.0,0.1153973]
[1741393159393,0.1107,86685.0,86681.0,0.1153973]
[1741393159583,0.1107,86685.0,86683.0,0.1153943]
[1741393159784,0.1107,86685.0,86679.0,0.1154001]
[1741393160487,0.1084,86684.0,86682.0,0.1153959]
[1741393160695,0.1084,86684.0,86683.0,0.05781198]
[1741393161592,0.1084,86684.0,86683.0,0.28401198]
[1741393161794,0.3608,86690.0,86689.0,0.1153871]
[1741393161991,0.1084,86694.0,86693.0,0.1153818]
[1741393163688,0.1084,86694.0,86693.0,0.05779868]
[1741393164596,0.1084,86694.0,86693.0,0.28379868]
[1741393165004,0.1114,86694.0,86693.0,0.28479868]
[1741393166793,0.1114,86694.0,86693.0,0.227]
[1741393167100,0.1114,86694.0,86693.0,0.3423818]
[1741393167407,0.003,86694.0,86693.0,0.3423818]
[1741393167590,0.003,86694.0,86693.0,0.4580818]
[1741393167790,0.1077,86713.0,86693.0,0.3427]
[1741393167993,0.1169,86712.0,86699.0,0.4761738]
[1741393168295,0.1169,86712.0,86711.0,0.1153579]
[1741393169288,0.1169,86712.0,86711.0,0.2247579]
[1741393169495,0.1169,86712.0,86711.0,0.3388579]
[1741393169794,0.1169,86712.0,86711.0,0.28127478]
[1741393171203,0.1179,86712.0,86711.0,0.28227478]
[1741393172795,0.1179,86712.0,86711.0,0.22469166]
[1741393172995,0.1179,86712.0,86711.0,0.35273849]
[1741393173397,0.1179,86712.0,86711.0,0.43413849]
[1741393174899,0.001,86712.0,86711.0,0.44284035]
[1741393176007,0.001,86712.0,86711.0,0.02258245]
[1741393176195,0.1163565,86712.0,86711.0,0.00970186]
[1741393176401,0.001,86712.0,86711.0,0.00970186]
[1741393176896,0.2192,86712.0,86711.0,0.00970186]
[1741393178404,0.2192,86712.0,86711.0,0.12505976]
[1741393179005,0.2192,86712.0,86711.0,0.06747664]
[1741393179405,0.2192,86712.0,86711.0,0.08407717]
[1741393180199,0.2192,86712.0,86711.0,0.01660053]
[1741393180603,0.10556,86719.0,86718.0,0.1153486]
[1741393180798,0.00017308,86720.0,86718.0,0.1153486]
[1741393180799,0.00017308,86720.0,86719.0,0.1153472]
[1741393181203,0.00017308,86720.0,86719.0,0.3348472]
[1741393181399,0.00172991,86739.0,86738.0,0.115322]
[1741393182111,0.00172991,86739.0,86738.0,0.05773888]
[1741393182607,0.00172991,86739.0,86738.0,0.16493888]
[1741393183812,0.17225128,86747.0,86744.0,0.1153136]
[1741393184115,0.17225128,86747.0,86742.0,0.0576582]
[1741393184308,0.17225128,86747.0,86743.0,0.1153148]
[1741393185015,0.17225128,86747.0,86743.0,0.05773168]
[1741393185406,0.00017297,86747.0,86743.0,0.05773168]
[1741393185606,0.00017297,86747.0,86742.0,0.07039738]
[1741393185806,0.00017297,86747.0,86744.0,0.1153139]
[1741393186006,0.00017297,86747.0,86746.0,0.1153113]
[1741393186615,0.00017297,86747.0,86746.0,0.3303113]
[1741393187313,0.3608,86753.0,86746.0,0.215]
[1741393187511,0.3608,86753.0,86752.0,0.1153033]
[1741393188216,0.3608,86753.0,86752.0,0.05772018]
[1741393188413,0.00017297,86761.0,86757.0,0.1152954]
[1741393188623,0.00017297,86761.0,86758.0,0.2272]
[1741393188916,0.00017297,86761.0,86758.0,0.1135]
[1741393189317,0.00017297,86761.0,86760.0,0.1152927]
[1741393189720,0.00017297,86761.0,86757.0,0.1152961]
[1741393189916,0.00017297,86761.0,86758.0,0.1152952]
[1741393190219,0.00010327,86760.0,86757.0,0.1152962]
[1741393190418,0.00010327,86760.0,86757.0,0.1162962]
[1741393190620,0.00010327,86760.0,86758.0,0.1152945]
[1741393190817,0.00010327,86760.0,86759.0,0.115294]
[1741393191122,0.00010327,86760.0,86758.0,0.114]
[1741393191420,0.00010327,86760.0,86758.0,0.001]
[1741393192006,0.00010327,86760.0,86755.0,0.0086877]
[1741393192213,0.11539597,86760.0,86759.0,0.001]
[1741393192413,0.47619597,86760.0,86759.0,0.001]
[1741393193916,0.1152941,86759.0,86758.0,0.001]
[1741393194124,0.36090327,86760.0,86758.0,0.01648537]
[1741393194716,0.36090327,86760.0,86759.0,0.001]
[1741393195025,0.36090327,86760.0,86759.0,0.01748537]
[1741393195918,0.3608,86782.0,86759.0,0.25750665]
[1741393196119,0.3608,86798.0,86772.0,0.4987073]
[1741393196327,0.3608,86798.0,86789.0,0.1152539]
[1741393196517,0.3608,86798.0,86790.0,0.08132]
[1741393196720,0.3608,86798.0,86790.0,0.09441659]
[1741393196924,0.3608,86798.0,86793.0,0.1152485]
[1741393197117,0.63287831,86800.0,86792.0,0.1152496]
[1741393197319,0.001,86798.0,86794.0,0.1152468]
[1741393197624,0.001,86798.0,86797.0,0.1152436]
[1741393198327,0.27207831,86800.0,86799.0,0.1152409]
[1741393198524,0.27207831,86800.0,86799.0,0.4760409]
[1741393198927,0.27207831,86800.0,86799.0,0.1152409]
[1741393200225,0.27207831,86800.0,86799.0,0.05765778]
[1741393200428,0.27207831,86800.0,86799.0,0.41845778]
[1741393200817,0.27307831,86800.0,86799.0,0.41945778]
[1741393202228,0.101,86800.0,86799.0,0.41945778]
[1741393202523,0.101,86800.0,86799.0,0.001]
[1741393202927,0.327,86800.0,86799.0,0.001]
[1741393203326,0.327,86800.0,86790.0,0.30962284]
[1741393203526,0.3608,86791.0,86790.0,0.42487574]
[1741393203733,0.3608,86791.0,86790.0,0.12825952]
[1741393204318,0.327,86800.0,86795.0,0.1152461]
[1741393204523,0.327,86800.0,86791.0,0.0576251]
[1741393204723,0.3608,86792.0,86790.0,0.32262946]
[1741393204937,0.226,86791.0,86790.0,0.01300662]
[1741393205232,0.226,86791.0,86787.0,0.1152568]
[1741393205421,0.227,86791.0,86786.0,0.12803801]
[1741393205618,0.227,86791.0,86788.0,0.1152553]
[1741393205817,0.227,86791.0,86790.0,0.1152529]
[1741393206031,0.227,86791.0,86788.0,0.1152553]
[1741393206337,0.227,86791.0,86789.0,0.1152541]
[1741393206531,0.5878,86791.0,86785.0,0.00017287]
[1741393206834,0.58674345,86791.0,86785.0,0.00017287]
[1741393207422,0.58674345,86791.0,86790.0,0.1152529]
[1741393207423,0.22594345,86791.0,86790.0,0.1152529]
[1741393208733,0.22158999,86791.0,86790.0,0.1152529]
[1741393209030,0.00172869,86819.0,86790.0,0.1152529]
[1741393209031,0.1158,86811.0,86799.0,0.1152409]
[1741393209232,0.1158,86811.0,86799.0,0.05765778]
[1741393209434,0.1158,86811.0,86799.0,0.07414126]
[1741393210328,0.1158,86811.0,86799.0,0.08814446]
[1741393210529,0.1084,86810.0,86799.0,0.08814446]
[1741393210919,0.1084,86810.0,86799.0,0.19804446]
[1741393211122,0.1084,86810.0,86799.0,0.22053113]
[1741393211318,0.0769421,86810.0,86809.0,0.1152276]
[1741393211729,0.0769421,86810.0,86809.0,0.12945387]
[1741393211933,0.1921684,86810.0,86809.0,0.01648348]
[1741393212428,0.0576174,86804.0,86800.0,0.15481142]
[1741393212634,0.4760383,86801.0,86800.0,0.15481142]
[1741393213429,0.4760383,86801.0,86793.0,0.27244386]
[1741393213430,0.1152475,86794.0,86793.0,0.27244386]
[1741393213624,0.4760475,86794.0,86793.0,0.27244386]
[1741393214133,0.4750475,86794.0,86793.0,0.27244386]
[1741393215028,0.5881475,86794.0,86793.0,0.27244386]
[1741393215536,0.1152502,86792.0,86791.0,0.00172818]
[1741393216125,0.2283502,86792.0,86791.0,0.00172818]
[1741393216934,0.1152582,86786.0,86779.0,0.72652]
[1741393217240,0.4760582,86786.0,86779.0,0.7272]
[1741393217427,0.6260582,86786.0,86779.0,0.7272]
[1741393218127,0.7417582,86786.0,86779.0,0.7272]
[1741393218529,0.1152661,86780.0,86779.0,0.66910975]
[1741393219532,0.2229661,86780.0,86779.0,0.66910975]
[1741393219736,0.5837661,86780.0,86779.0,0.66910975]
[1741393219934,0.1077,86780.0,86779.0,0.78437725]
[1741393220134,0.3608,86785.0,86784.0,0.1152608]
[1741393220635,0.3608,86785.0,86784.0,0.1965008]
[1741393221438,0.003,86786.0,86784.0,0.08124]
[1741393221638,0.1145,86790.0,86785.0,0.2282]
[1741393221843,0.41860097,86788.0,86784.0,0.08124]
[1741393222038,0.1152661,86780.0,86779.0,0.66978975]
[1741393222243,0.4760661,86780.0,86779.0,0.66910975]
[1741393223529,0.4780661,86780.0,86779.0,0.66910975]
[1741393223731,0.3628,86780.0,86779.0,0.78437725]
[1741393224433,0.3628,86780.0,86779.0,0.61152663]
[1741393224929,0.3608,86780.0,86779.0,0.72679413]
[1741393225134,0.3608,86780.0,86779.0,0.61152663]
[1741393225334,0.4760661,86780.0,86779.0,0.61152663]
[1741393225843,0.4760661,86780.0,86779.0,0.61252663]
[1741393226640,0.4780661,86780.0,86779.0,0.61152663]
[1741393227435,0.4780661,86780.0,86779.0,0.55394351]
[1741393228242,0.002,86780.0,86779.0,1.03001101]
[1741393228934,0.002,86780.0,86779.0,1.25021101]
[1741393229648,0.00017287,86788.0,86787.0,0.1152568]
[1741393229833,0.49828919,86797.0,86787.0,0.0576281]
[1741393230038,0.114,86796.0,86795.0,0.1152462]
[1741393230747,0.114,86796.0,86794.0,0.1152475]
[1741393230936,0.114,86796.0,86789.0,0.2305069]
[1741393231132,0.114,86796.0,86790.0,0.1152518]
[1741393231538,0.114,86796.0,86791.0,0.1152512]
[1741393231846,0.114,86796.0,86793.0,0.0576238]
[1741393232246,0.114,86796.0,86794.0,0.115247]
[1741393232547,0.114,86796.0,86793.0,0.0576238]
[1741393233047,0.114,86796.0,86793.0,0.001]
[1741393233439,0.114,86796.0,86795.0,0.1152462]
[1741393233642,0.114,86796.0,86793.0,0.001]
[1741393233847,0.114,86796.0,86795.0,0.1152462]
[1741393235445,0.114,86796.0,86793.0,0.0586238]
[1741393235446,0.1152475,86794.0,86793.0,0.001]
[1741393235635,0.4760475,86794.0,86793.0,0.001]
[1741393235841,0.1152661,86780.0,86779.0,0.55394351]
[1741393236035,0.0576324,86782.0,86779.0,0.55394351]
[1741393236242,0.1083,86781.0,86779.0,0.55394351]
[1741393236647,0.1083,86781.0,86779.0,0.49636039]
[1741393237150,0.36140001,86787.0,86779.0,0.49636039]
[1741393237343,0.36144,86794.0,86780.0,0.0576327]
[1741393237541,0.1083,86793.0,86792.0,0.1152502]
[1741393238650,0.1083,86793.0,86788.0,0.0576274]
[1741393238852,0.1083,86793.0,86785.0,0.08124]
[1741393238853,0.1083,86793.0,86785.0,0.1964989]
[1741393239156,0.1083,86793.0,86787.0,0.1152565]
[1741393239452,0.1103,86793.0,86787.0,0.1152565]
[1741393239644,0.1103,86793.0,86785.0,0.13891508]
[1741393239847,0.2255489,86793.0,86785.0,0.13891508]
[1741393240250,0.1103,86793.0,86785.0,0.02365688]
[1741393240440,0.1152508,86792.0,86786.0,0.1116]
[1741393240646,0.1103,86793.0,86786.0,0.1116]
[1741393240845,0.1152568,86787.0,86786.0,0.1116]
[1741393241046,0.1152595,86785.0,86784.0,0.00017287]
[1741393241453,0.2262595,86785.0,86784.0,0.00017287]
[1741393241653,0.6974595,86785.0,86784.0,0.00017287]
[1741393242657,0.6974595,86785.0,86779.0,0.20571618]
[1741393242658,0.5822,86785.0,86779.0,0.14830593]
[1741393243042,0.1152661,86780.0,86779.0,0.14830593]
[1741393243759,0.4760661,86780.0,86779.0,0.14830593]
[1741393245660,0.4760661,86780.0,86779.0,0.09072281]
[1741393245960,0.4760661,86780.0,86779.0,0.09920798]
[1741393246257,0.4760661,86780.0,86779.0,0.00848517]
[1741393246459,0.1152768,86772.0,86771.0,0.00017287]
[1741393246755,0.4760768,86772.0,86771.0,0.00885605]
[1741393247055,0.4760768,86772.0,86771.0,0.00017287]
[1741393247461,0.7016768,86772.0,86771.0,0.00017287]
[1741393248861,0.1152874,86764.0,86763.0,0.05787835]
[1741393249055,0.1152874,86764.0,86763.0,0.2308]
[1741393249560,0.3474874,86764.0,86763.0,0.2308]
[1741393251962,0.3484874,86764.0,86763.0,0.17321688]
[1741393252657,0.3474874,86764.0,86763.0,0.17321688]
[1741393252863,0.3484874,86764.0,86763.0,0.17321688]
[1741393253659,0.2322,86764.0,86763.0,0.17321688]
[1741393254853,0.20666924,86777.0,86763.0,0.11563376]
[1741393255057,0.3608,86782.0,86764.0,0.3608]
[1741393255058,0.1157,86772.0,86764.0,0.3608]
[1741393255258,0.1157,86772.0,86764.0,0.4760871]
[1741393255858,0.1157,86772.0,86765.0,0.1152852]
[1741393256458,0.1157,86772.0,86764.0,0.4760871]
[1741393256657,0.1157,86772.0,86764.0,0.3648]
[1741393256863,0.1383674,86776.0,86771.0,0.0576386]
[1741393257163,0.13776739,86776.0,86775.0,0.1152728]
[1741393257366,0.11400819,86776.0,86775.0,0.1152728]
[1741393257960,0.11400819,86776.0,86775.0,0.28158968]
[1741393258560,0.1099,86785.0,86777.0,0.1152698]
[1741393258769,0.1116,86784.0,86775.0,0.3616893]
[1741393258966,0.1116,86784.0,86778.0,0.1152678]
[1741393259158,0.1099,86783.0,86778.0,0.1152678]
[1741393259362,0.00017287,86788.0,86775.0,0.3616893]
[1741393259363,0.00017287,86788.0,86782.0,0.1152635]
[1741393259562,0.2177,86807.0,86791.0,0.1152515]
[1741393259563,0.10876481,86792.0,86791.0,0.1152515]
[1741393259872,0.1081648,86792.0,86791.0,0.1152515]
[1741393260174,0.1081648,86792.0,86791.0,0.4760515]
[1741393260560,0.1081648,86792.0,86791.0,0.7181953]
[1741393260869,0.1081648,86792.0,86791.0,0.66061218]
[1741393261962,0.1081648,86792.0,86791.0,0.2421438]
[1741393262268,0.1081648,86792.0,86791.0,0.3573953]
[1741393262764,0.1081648,86792.0,86791.0,0.2421438]
[1741393263067,0.1081648,86792.0,86791.0,0.3573953]
[1741393263265,0.1081648,86792.0,86791.0,0.2421438]
[1741393263463,0.1081648,86792.0,86791.0,0.2431438]
[1741393263665,0.1081648,86792.0,86791.0,0.3583953]
[1741393263971,0.1081648,86792.0,86791.0,0.30081218]
[1741393264167,0.1161,86798.0,86794.0,0.1152474]
[1741393264359,0.1149,86797.0,86795.0,0.1171]
[1741393264672,0.1149,86797.0,86795.0,0.2323461]
[1741393264968,0.1089,86796.0,86795.0,0.2323461]
[1741393265369,0.1089,86796.0,86795.0,0.1171]
[1741393265565,0.0576231,86795.0,86791.0,0.0127438]
[1741393265767,0.1152608,86784.0,86782.0,0.1377893]
[1741393265971,0.1152583,86786.0,86776.0,0.232371]
[1741393266173,0.1152583,86786.0,86777.0,0.1152698]
[1741393266174,0.2238,86785.0,86777.0,0.1152698]
[1741393266368,0.3390596,86785.0,86777.0,0.1152698]
[1741393266674,0.2238,86785.0,86782.0,0.115263]
[1741393266876,0.2238,86785.0,86781.0,0.3608]
[1741393266877,0.00017287,86800.0,86796.0,0.1152443]
[1741393267171,0.00017287,86800.0,86797.0,0.1139]
[1741393267471,0.00017287,86800.0,86799.0,0.4760409]
[1741393268570,0.00017287,86800.0,86799.0,0.7029409]
[1741393269158,0.1152515,86791.0,86790.0,0.1377893]
[1741393269363,0.3462,86799.0,86780.0,0.2507893]
[1741393269564,0.1152572,86787.0,86780.0,0.113]
[1741393269773,0.1152572,86787.0,86779.0,0.3608]
[1741393269774,0.215,86786.0,86784.0,0.1161]
[1741393269974,0.1152595,86785.0,86784.0,0.05851688]
[1741393270167,0.1152595,86785.0,86784.0,0.17081688]
[1741393270363,0.3302595,86785.0,86784.0,0.17081688]
[1741393270568,0.1152608,86784.0,86783.0,0.00017287]
[1741393270867,0.215,86785.0,86783.0,0.00017287]
[1741393271068,0.2236608,86784.0,86783.0,0.11247287]
[1741393271273,0.1084,86784.0,86783.0,0.11247287]
[1741393271476,0.2236608,86784.0,86783.0,0.11247287]
[1741393271771,0.3302608,86784.0,86783.0,0.11247287]
[1741393271971,0.215,86784.0,86783.0,0.11247287]
[1741393272177,0.215,86784.0,86783.0,0.22773507]
[1741393272875,0.219,86784.0,86783.0,0.22773507]
[1741393273078,0.219,86784.0,86783.0,0.17015195]
[1741393273576,0.217,86784.0,86783.0,0.17015195]
[1741393273772,0.217,86784.0,86783.0,0.05488975]
[1741393274076,0.218,86784.0,86783.0,0.05488975]
[1741393275071,0.215,86784.0,86783.0,0.17015195]
[1741393275277,0.217,86784.0,86783.0,0.05488975]
[1741393275769,0.217,86784.0,86779.0,0.37678089]
[1741393275973,0.217,86784.0,86779.0,0.01598089]
[1741393276169,0.0576367,86775.0,86771.0,0.2174]
[1741393276376,0.1152722,86776.0,86771.0,0.1064]
[1741393276566,0.3608,86780.0,86765.0,0.111]
[1741393276567,0.1152829,86768.0,86765.0,0.111]
[1741393276766,0.2228,86767.0,86763.0,0.2174]
[1741393276971,0.2228,86767.0,86764.0,0.10812886]
[1741393277281,0.2218,86767.0,86766.0,0.1152847]
[1741393277675,0.2218,86767.0,86765.0,0.1152848]
[1741393277975,0.2218,86767.0,86764.0,0.01852809]
[1741393278176,0.1152861,86765.0,86764.0,0.00272886]
[1741393278379,0.1152861,86765.0,86764.0,0.00172886]
[1741393278882,0.2794423,86767.0,86764.0,0.00472886]
[1741393279178,0.1152887,86763.0,86762.0,0.68199197]
[1741393279971,0.1152887,86763.0,86762.0,0.00868623]
[1741393280169,0.115294,86759.0,86758.0,0.1152949]
[1741393280369,0.1152954,86758.0,86757.0,0.36097287]
[1741393281579,0.1172943,86759.0,86757.0,0.47626957]
[1741393281780,0.2245954,86758.0,86757.0,0.36097287]
[1741393281975,0.1093,86758.0,86757.0,0.36097287]
[1741393282180,0.2245954,86758.0,86757.0,0.00017287]
[1741393283378,0.2265954,86758.0,86757.0,0.00017287]
[1741393283581,0.2265954,86758.0,86757.0,0.00888996]
[1741393283784,0.2265954,86758.0,86757.0,0.00017287]
[1741393284377,0.2245954,86758.0,86757.0,0.00017287]
[1741393284577,0.2265954,86758.0,86757.0,0.00017287]
[1741393285183,0.2265954,86758.0,86755.0,0.17090043]
[1741393285184,0.115298,86756.0,86755.0,0.11349018]
[1741393287081,0.001,86756.0,86755.0,0.12220302]
[1741393287285,0.001,86756.0,86755.0,0.14000641]
[1741393287484,0.1093,86758.0,86755.0,0.00871284]
[1741393287690,0.172959,86750.0,86749.0,0.00864882]
[1741393287891,0.1153087,86748.0,86747.0,0.00017287]
[1741393288184,0.1153131,86745.0,86740.0,0.1153181]
[1741393288382,0.0576584,86742.0,86739.0,0.1113]
[1741393288582,0.1153193,86740.0,86739.0,0.1113]
[1741393288787,0.1153193,86740.0,86739.0,0.01632745]
[1741393288990,0.1153273,86734.0,86733.0,0.28278565]
[1741393289482,0.1153273,86734.0,86733.0,0.29849781]
[1741393289882,0.2283264,86735.0,86733.0,0.29849781]
[1741393290080,0.113,86735.0,86733.0,0.29849781]
[1741393290283,0.113,86735.0,86734.0,0.2208]
[1741393290489,0.2283259,86735.0,86734.0,0.2208]
[1741393290683,0.2283259,86735.0,86734.0,0.1113]
[1741393290885,0.1153273,86734.0,86733.0,0.29949781]
[1741393291287,0.4761273,86734.0,86733.0,0.00976734]
[1741393291594,0.5864273,86734.0,86733.0,0.00976734]
[1741393291989,0.5864273,86734.0,86733.0,1e-08]
[1741393292493,0.1153379,86726.0,86725.0,0.00017287]
[1741393292696,0.4761379,86726.0,86725.0,0.00017287]
[1741393293190,0.4751379,86726.0,86725.0,0.00017287]
[1741393294090,0.4791379,86726.0,86725.0,0.00017287]
[1741393294389,0.1153425,86723.0,86719.0,0.13115001]
[1741393294589,0.1153446,86721.0,86720.0,0.107]
[1741393295881,0.1156,86722.0,86720.0,0.107]
[1741393296389,0.1153446,86721.0,86720.0,0.107]
[1741393297298,0.1153446,86721.0,86720.0,0.04941688]
[1741393297497,0.1153459,86720.0,86719.0,0.01608238]
[1741393297794,0.1121,86720.0,86716.0,0.24410595]
[1741393297998,0.1121,86720.0,86718.0,0.1153479]
[1741393298183,0.002,86721.0,86720.0,0.1153459]
[1741393298591,0.002,86721.0,86720.0,0.5914459]
[1741393298995,0.2177,86732.0,86730.0,0.1153326]
[1741393299193,0.2177,86732.0,86731.0,0.3437313]
[1741393299592,0.0527369,86741.0,86731.0,0.2284]
[1741393299789,0.2185445,86749.0,86741.0,0.1153174]
[1741393299994,0.1032367,86749.0,86741.0,0.1153174]
[1741393300203,0.1032367,86749.0,86742.0,0.1139]
[1741393300399,0.2185444,86749.0,86742.0,0.05631688]
[1741393300697,0.1153106,86747.0,86743.0,0.1116]
[1741393300894,0.2129,86748.0,86743.0,0.1116]
[1741393301094,0.2129,86746.0,86743.0,0.1116]
[1741393301692,0.2129,86746.0,86743.0,0.2269149]
[1741393301902,0.1500304,86758.0,86745.0,0.3608]
[1741393302091,0.17009842,86763.0,86760.0,0.0576457]
[1741393302290,0.2129,86762.0,86757.0,0.3608]
[1741393302495,0.2129,86762.0,86754.0,0.0812]
[1741393302692,0.3608,86759.0,86754.0,0.0812]
[1741393302888,0.2129,86758.0,86749.0,0.1116]
[1741393303201,0.2129,86758.0,86757.0,0.1152967]
[1741393303498,0.2099,86758.0,86757.0,0.05771358]
[1741393303692,0.2099,86758.0,86752.0,0.3608]
[1741393304093,0.2109,86758.0,86753.0,0.115301]
[1741393304303,0.2109,86758.0,86753.0,0.225801]
[1741393304603,0.2109,86758.0,86757.0,0.001]
[1741393304604,0.2099,86758.0,86757.0,0.001]
[1741393305208,0.2099,86758.0,86757.0,0.01559653]
[1741393305393,0.115302,86753.0,86752.0,0.3608]
[1741393305587,0.2099,86758.0,86752.0,0.3767648]
[1741393305906,0.1152968,86757.0,86752.0,0.3767648]
[1741393306095,0.1152968,86757.0,86752.0,0.3807648]
[1741393306296,0.1124,86756.0,86754.0,0.1153002]
[1741393306595,0.2288,86756.0,86752.0,0.32318168]
[1741393306796,0.3440981,86756.0,86752.0,0.32018168]
[1741393307204,0.2288,86756.0,86752.0,0.3777648]
[1741393307594,0.2298,86756.0,86752.0,0.3767648]
[1741393307799,0.2298,86756.0,86752.0,0.492068]
[1741393308097,0.2298,86756.0,86755.0,0.1152994]
[1741393308307,0.2288,86756.0,86755.0,0.1152994]
[1741393308698,0.36097297,86765.0,86755.0,0.2207]
[1741393308900,0.06765484,86764.0,86763.0,0.1152887]
[1741393309096,0.00017297,86765.0,86763.0,0.1152887]
[1741393309304,0.00017297,86765.0,86755.0,0.2758119]
[1741393309305,0.00017297,86765.0,86755.0,0.13807892]
[1741393309598,0.00017297,86765.0,86755.0,0.0804958]
[1741393309798,0.476098,86756.0,86755.0,0.00017297]
[1741393310304,0.477098,86756.0,86755.0,0.00017297]
[1741393310507,0.116298,86756.0,86755.0,0.00017297]
[1741393311395,0.115298,86756.0,86755.0,0.00017297]
[1741393311594,0.118298,86756.0,86755.0,0.00017297]
[1741393312402,0.330798,86756.0,86755.0,0.00017297]
[1741393312602,0.1153098,86748.0,86746.0,0.30338985]
[1741393312797,0.2175,86756.0,86742.0,0.8418755]
[1741393312798,0.5733,86747.0,86744.0,0.01557271]
[1741393313108,0.2701556,86747.0,86742.0,0.72728]
[1741393313304,0.1153147,86744.0,86742.0,0.72656]
[1741393313506,0.2125,86743.0,86742.0,0.72656]
[1741393313705,0.3278153,86743.0,86742.0,0.74250091]
[1741393314809,0.3278153,86743.0,86742.0,0.72656]
[1741393315608,0.3278153,86743.0,86742.0,0.66897688]
[1741393315808,0.3278153,86743.0,86734.0,0.00017297]
[1741393315809,0.1153259,86735.0,86734.0,0.00017297]
[1741393316209,0.1143259,86735.0,86734.0,0.00017297]
[1741393316921,0.3328259,86735.0,86734.0,0.00017297]
[1741393317922,0.3388259,86735.0,86734.0,0.00017297]
[1741393318721,0.3388259,86735.0,86720.0,0.13790595]
[1741393318722,0.1153446,86721.0,86720.0,0.13790595]
[1741393319019,0.3608,86721.0,86717.0,0.0576748]
[1741393319214,0.2254,86720.0,86717.0,0.0576748]
[1741393319521,0.2254,86720.0,86714.0,0.73771316]
[1741393319721,0.1153525,86715.0,86714.0,0.73695316]
[1741393319916,0.1153525,86715.0,86714.0,0.75256881]
[1741393320518,0.1153525,86715.0,86714.0,0.73522335]
[1741393320724,0.2248525,86715.0,86714.0,0.73522335]
[1741393321023,0.2248525,86715.0,86714.0,0.74122335]
[1741393321423,0.2248525,86715.0,86714.0,0.73922335]
[1741393321620,0.2248525,86715.0,86714.0,0.68164023]
[1741393322420,0.19066,86715.0,86710.0,0.34362477]
[1741393322624,0.19066,86715.0,86705.0,0.40980441]
[1741393322625,0.3608,86711.0,86705.0,0.40980441]
[1741393322923,0.4761645,86706.0,86705.0,0.40980441]
[1741393323124,0.4761645,86706.0,86700.0,0.1]
[1741393323125,0.1153712,86701.0,86700.0,0.10876946]
[1741393324025,0.1143712,86701.0,86700.0,0.10876946]
[1741393324616,0.1193712,86701.0,86700.0,0.05118634]
[1741393325619,0.1153765,86697.0,86696.0,0.50867253]
[1741393325818,0.4761765,86697.0,86696.0,0.50867253]
[1741393326924,0.1154018,86678.0,86677.0,0.01555795]
[1741393327119,0.3608,86678.0,86675.0,0.11523078]
[1741393327320,0.1154044,86676.0,86675.0,0.00858857]
[1741393327525,0.1154138,86669.0,86668.0,0.221]
[1741393327723,0.1154138,86669.0,86668.0,0.1073]
[1741393328424,0.00060001,86687.0,86668.0,0.1073]
[1741393328623,0.057693,86690.0,86675.0,0.002]
[1741393328624,0.1154044,86676.0,86675.0,0.002]
[1741393329133,0.2191044,86676.0,86675.0,0.002]
[1741393329430,0.2191044,86676.0,86675.0,0.003]
[1741393330328,0.2191044,86676.0,86675.0,0.001]
[1741393330830,0.1154124,86670.0,86669.0,0.05611688]
[1741393331629,0.1144124,86670.0,86669.0,0.05611688]
[1741393332331,0.1144124,86670.0,86669.0,0.05911688]
[1741393333930,0.1144124,86670.0,86669.0,0.00153376]
[1741393334333,0.2271124,86670.0,86669.0,0.00153376]
[1741393335929,0.1127,86670.0,86669.0,0.00153376]
[1741393336824,0.1127,86670.0,86668.0,0.05125064]
[1741393337024,0.1127,86670.0,86669.0,0.1058]
[1741393337224,0.2281124,86670.0,86669.0,0.1058]
[1741393337428,0.1154138,86669.0,86668.0,0.05125064]
[1741393337630,0.1154138,86669.0,86667.0,0.00847692]
[1741393337631,0.1154151,86668.0,86667.0,0.00847692]
[1741393337834,0.1154151,86668.0,86652.0,0.7266]
[1741393337835,0.1154351,86653.0,86652.0,0.7266]
[1741393338128,0.4762351,86653.0,86652.0,0.7266]
[1741393338430,0.00060001,86668.0,86652.0,0.95667305]
[1741393338627,0.0576995,86681.0,86667.0,0.3608]
[1741393338830,0.3608,86678.0,86671.0,0.13790595]
[1741393339020,0.1075,86677.0,86671.0,0.13790595]
[1741393339424,0.1075,86677.0,86672.0,0.0577045]
[1741393339730,0.1075,86677.0,86671.0,0.13790595]
[1741393339731,0.1075,86677.0,86675.0,0.1154049]
[1741393339923,0.1075,86677.0,86676.0,0.04771688]
[1741393340329,0.4683,86677.0,86667.0,0.001]
[1741393340531,0.1154098,86672.0,86671.0,0.001]
[1741393340934,0.1966098,86672.0,86671.0,0.001]
[1741393341136,0.1154098,86672.0,86671.0,0.001]
[1741393341638,0.3063098,86672.0,86671.0,0.001]
[1741393341837,0.2271098,86672.0,86671.0,0.001]
[1741393342029,0.3083098,86672.0,86671.0,0.001]
[1741393342230,0.1154178,86666.0,86661.0,0.1132]
[1741393342923,0.1154231,86662.0,86661.0,0.05578995]
[1741393343326,0.0577108,86664.0,86653.0,0.103]
[1741393343625,0.1154337,86654.0,86653.0,0.103]
[1741393343823,0.1154617,86634.0,86631.0,0.00173162]
[1741393344028,0.0577302,86634.0,86631.0,0.00173162]
[1741393344233,0.1154631,86632.0,86631.0,0.00173162]
[1741393344829,0.2254631,86632.0,86631.0,0.00173162]
[1741393345130,0.1144791,86620.0,86619.0,0.3608]
[1741393345824,0.1124791,86620.0,86619.0,0.3608]
[1741393346033,0.2215,86622.0,86619.0,0.30321688]
[1741393346224,0.1154778,86621.0,86620.0,0.1099]
[1741393346634,0.2217,86621.0,86619.0,0.30321688]
[1741393346832,0.1154791,86620.0,86619.0,0.30321688]
[1741393347334,0.3391791,86620.0,86619.0,0.30321688]
[1741393347538,0.1154951,86608.0,86600.0,0.59870595]
[1741393347726,0.1154951,86608.0,86602.0,0.1048]
[1741393347928,0.1154951,86608.0,86607.0,0.40080441]
[1741393348936,0.1154951,86608.0,86604.0,0.0203927]